fUST/lending_fUST_20250924
["ID","MTS","AMOUNT","RATE_DAILY","PERIOD"]
[387302591,1758684636198,-154.64537251,0.00023349,2]
[387302592,1758684636208,-500.0,0.00023349,2]
[387302593,1758684636217,-500.0,0.00023349,2]
[387302594,1758684636231,-542.34867522,0.00023349,2]
[387302595,1758684636247,-480.0,0.0002335,2]
[387302596,1758684636257,-483.90889628,0.0002335,2]
[387302597,1758684636266,-480.0,0.0002335,2]
[387302598,1758684636278,-480.0,0.0002335,2]
[387302599,1758684636288,-480.0,0.0002335,2]
[387302600,1758684636297,-483.0200012,0.0002335,2]
[387302601,1758684636307,-487.64495336,0.0002335,2]
[387302602,1758684636317,-480.0,0.0002335,2]
[387302603,1758684636327,-480.0,0.0002335,2]
[387302604,1758684636337,-480.0,0.0002335,2]
[387302605,1758684636346,-480.0,0.0002335,2]
[387302606,1758684636356,-480.0,0.0002335,2]
[387302607,1758684636366,-500.0,0.0002335,2]
[387302608,1758684636375,-480.0,0.0002335,2]
[387302609,1758684636385,-480.0,0.0002335,2]
[387302610,1758684636395,-484.7910124,0.0002335,2]
[387302611,1758684636404,-483.43857539,0.0002335,2]
[387302612,1758684636414,-480.0,0.0002335,2]
[387302613,1758684636423,-480.0,0.0002335,2]
[387302614,1758684636433,-482.92495948,0.0002335,2]
[387302615,1758684636442,-480.0,0.0002335,2]
[387302616,1758684636451,-480.0,0.0002335,2]
[387302617,1758684636461,-480.0,0.0002335,2]
[387302618,1758684636471,-1686.9,0.0002335,2]
[387302619,1758684636480,-480.0,0.0002335,2]
[387302620,1758684636490,-480.0,0.0002335,2]
[387302621,1758684636499,-480.0,0.0002335,2]
[387302622,1758684636509,-480.0,0.0002335,2]
[387302623,1758684636519,-485.97815818,0.0002335,2]
[387302624,1758684636529,-480.0,0.0002335,2]
[387302625,1758684636538,-480.0,0.0002335,2]
[387302626,1758684636548,-480.0,0.0002335,2]
[387302627,1758684636558,-480.0,0.0002335,2]
[387302628,1758684636567,-480.0,0.0002335,2]
[387302629,1758684636577,-601.28,0.0002335,2]
[387302630,1758684636586,-480.0,0.0002335,2]
[387302631,1758684636596,-480.0,0.0002335,2]
[387302632,1758684636605,-480.0,0.0002335,2]
[387302633,1758684636615,-480.0,0.0002335,2]
[387302634,1758684636624,-484.98195144,0.0002335,2]
[387302635,1758684636634,-480.0,0.0002335,2]
[387302636,1758684636644,-480.0,0.0002335,2]
[387302637,1758684636654,-489.78150139,0.0002335,2]
[387302638,1758684636664,-480.0,0.0002335,2]
[387302639,1758684636673,-480.0,0.0002335,2]
[387302640,1758684636682,-480.0,0.0002335,2]
[387302641,1758684636692,-480.0,0.0002335,2]
[387302642,1758684636702,-486.60175361,0.0002335,2]
[387302643,1758684636711,-480.0,0.0002335,2]
[387302644,1758684636721,-480.0,0.0002335,2]
[387302645,1758684636730,-480.0,0.0002335,2]
[387302646,1758684636740,-480.0,0.0002335,2]
[387302647,1758684636749,-480.0,0.0002335,2]
[387302648,1758684636759,-480.0,0.0002335,2]
[387302649,1758684636770,-480.0,0.0002335,2]
[387302650,1758684636780,-480.0,0.0002335,2]
[387302651,1758684636793,-480.0,0.0002335,2]
[387302652,1758684636805,-679.95,0.0002335,2]
[387302653,1758684636815,-480.0,0.0002335,2]
[387302654,1758684636825,-487.08788723,0.0002335,2]
[387302655,1758684636834,-480.0,0.0002335,2]
[387302656,1758684636843,-480.0,0.0002335,2]
[387302657,1758684636853,-480.0,0.0002335,2]
[387302658,1758684636869,-480.0,0.0002335,2]
[387302659,1758684636883,-480.0,0.0002335,2]
[387302660,1758684636893,-480.0,0.0002335,2]
[387302661,1758684636903,-46.64689894,0.0002335,2]
[387302663,1758684638595,-480.0,0.00023075,2]
[387302664,1758684638606,-480.0,0.00023076,2]
[387302665,1758684638616,-480.0,0.00023105,2]
[387302667,1758684638627,-243.94010185,0.00023114,2]
[387302668,1758684638636,-480.0,0.00023349,2]
[387302670,1758684638646,-433.35310106,0.0002335,2]
[387302671,1758684638656,-480.0,0.0002335,2]
[387302673,1758684638666,-480.0,0.0002335,2]
[387302674,1758684638675,-487.69012712,0.0002335,2]
[387302679,1758684638777,-480.0,0.0002335,2]
[387302680,1758684638788,-480.0,0.0002335,2]
[387302681,1758684638798,-969.9,0.0002335,2]
[387302682,1758684638808,-480.0,0.0002335,2]
[387302683,1758684638817,-480.0,0.0002335,2]
[387302684,1758684638827,-528.27698255,0.0002335,2]
[387302685,1758684638836,-522.8,0.0002335,2]
[387302686,1758684638846,-480.0,0.0002335,2]
[387302687,1758684638855,-480.0,0.0002335,2]
[387302688,1758684638865,-484.43025393,0.0002335,2]
[387302689,1758684638875,-495.5,0.0002335,2]
[387302690,1758684638884,-344.90027773,0.00023359,2]
[387302691,1758684638894,-480.0,0.00023359,2]
[387302692,1758684638904,-500.0,0.00023373,2]
[387302693,1758684638915,-500.0,0.00023373,2]
[387302694,1758684638924,-500.0,0.00023373,2]
[387302695,1758684638934,-500.0,0.00023373,2]
[387302696,1758684638943,-480.0,0.00023379,2]
[387302697,1758684638952,-480.0,0.00023379,2]
[387302698,1758684638962,-480.0,0.00023379,2]
[387302699,1758684638972,-480.0,0.00023379,2]
[387302700,1758684638982,-480.0,0.00023379,2]
[387302701,1758684638992,-483.84681797,0.00023388,2]
[387302702,1758684639002,-483.04340066,0.00023388,2]
[387302703,1758684639012,-480.0,0.00023388,2]
[387302704,1758684639024,-480.0,0.00023388,2]
[387302705,1758684639033,-480.0,0.00023388,2]
[387302706,1758684639042,-483.27802611,0.00023388,2]
[387302707,1758684639052,-480.0,0.00023388,2]
[387302708,1758684639061,-484.47153492,0.00023388,2]
[387302709,1758684639070,-480.0,0.00023388,2]
[387302710,1758684639079,-485.79895417,0.00023388,2]
[387302711,1758684639090,-288.30418576,0.00023388,2]
[387302712,1758684639101,-480.0,0.00023388,2]
[387302713,1758684639111,-487.58171512,0.00023388,2]
[387302714,1758684639120,-483.23923449,0.00023388,2]
[387302715,1758684639129,-480.0,0.00023388,2]
[387302716,1758684639138,-394.31363014,0.00023388,2]
[387302717,1758684639147,-482.74,0.00023388,2]
[387302718,1758684639156,-480.87566654,0.00023388,2]
[387302719,1758684639166,-485.98422019,0.00023388,2]
[387302720,1758684639175,-481.1484857,0.00023388,2]
[387302721,1758684639186,-482.54852348,0.00023388,2]
[387302722,1758684639197,-500.72859306,0.00023388,2]
[387302723,1758684639206,-485.2415855,0.00023388,2]
[387302724,1758684639216,-480.71377818,0.00023388,2]
[387302725,1758684639225,-480.0,0.00023388,2]
[387302726,1758684639241,-482.69184244,0.00023388,2]
[387302727,1758684639252,-483.43795775,0.00023388,2]
[387302728,1758684639262,-484.60154448,0.00023388,2]
[387302729,1758684639275,-483.55628601,0.00023388,2]
[387302730,1758684639284,-486.47611201,0.00023388,2]
[387302731,1758684639294,-485.25348532,0.00023388,2]
[387302732,1758684639303,-480.0,0.00023388,2]
[387302733,1758684639313,-424.26812207,0.00023388,2]
[387302734,1758684639324,-482.66244457,0.00023388,2]
[387302735,1758684639335,-249.16849712,0.00023388,2]
[387302736,1758684639345,-480.0,0.00023388,2]
[387302737,1758684639355,-480.0,0.00023388,2]
[387302738,1758684639364,-482.66451475,0.00023388,2]
[387302739,1758684639374,-483.84438653,0.00023388,2]
[387302740,1758684639383,-482.38821703,0.00023388,2]
[387302741,1758684639392,-480.0,0.00023388,2]
[387302742,1758684639402,-534.48223388,0.00023388,2]
[387302743,1758684639412,-483.1599813,0.00023388,2]
[387302744,1758684639421,-482.44897884,0.00023388,2]
[387302745,1758684639431,-480.0,0.00023388,2]
[387302746,1758684639441,-480.0,0.00023388,2]
[387302747,1758684639450,-480.0,0.00023388,2]
[387302748,1758684639459,-480.0,0.00023388,2]
[387302749,1758684639469,-481.20255601,0.00023388,2]
[387302750,1758684639478,-480.0,0.00023388,2]
[387302751,1758684639487,-499.79836557,0.00023388,2]
[387302752,1758684639496,-482.55698377,0.00023388,2]
[387302753,1758684639505,-482.38729818,0.00023388,2]
[387302754,1758684639514,-480.0,0.00023388,2]
[387302755,1758684639528,-480.0,0.00023388,2]
[387302756,1758684639537,-480.0,0.00023388,2]
[387302757,1758684639546,-480.0,0.00023388,2]
[387302758,1758684639556,-481.24176945,0.00023388,2]
[387302759,1758684639565,-482.32762858,0.00023388,2]
[387302760,1758684639575,-480.0,0.00023388,2]
[387302761,1758684639584,-480.0,0.00023388,2]
[387302762,1758684639594,-480.0,0.00023388,2]
[387302763,1758684639603,-307.79428059,0.00023388,2]
[387302764,1758684639613,-480.0,0.00023388,2]
[387302765,1758684639622,-480.0,0.00023388,2]
[387302766,1758684639632,-480.0,0.00023388,2]
[387302767,1758684639643,-481.34763429,0.00023388,2]
[387302768,1758684639652,-480.0,0.00023388,2]
[387302769,1758684639661,-481.41174924,0.00023388,2]
[387302770,1758684639671,-480.0,0.00023388,2]
[387302771,1758684639681,-480.0,0.00023388,2]
[387302772,1758684639691,-480.0,0.00023388,2]
[387302773,1758684639700,-480.0,0.00023388,2]
[387302774,1758684639710,-157.5154215,0.00023388,2]
[387302775,1758684639719,-480.0,0.00023388,2]
[387302776,1758684639728,-480.0,0.00023388,2]
[387302777,1758684639738,-480.0,0.00023388,2]
[387302778,1758684639747,-480.0,0.00023388,2]
[387302779,1758684639756,-481.30324616,0.00023388,2]
[387302780,1758684639765,-480.0,0.00023388,2]
[387302781,1758684639778,-480.0,0.00023388,2]
[387302782,1758684639787,-480.0,0.00023388,2]
[387302783,1758684639796,-481.91046568,0.00023388,2]
[387302784,1758684639806,-481.88235915,0.00023388,2]
[387302785,1758684639815,-480.0,0.00023388,2]
[387302786,1758684639825,-604.80489222,0.00023388,2]
[387302787,1758684639834,-394.69046702,0.00023388,2]
[387302788,1758684639844,-175.85367564,0.00023388,2]
[387302789,1758684639853,-480.0,0.00023388,2]
[387302790,1758684639864,-480.0,0.00023388,2]
[387302791,1758684639874,-480.0,0.00023388,2]
[387302792,1758684639884,-481.02486374,0.00023388,2]
[387302793,1758684639893,-480.0,0.00023388,2]
[387302794,1758684639903,-480.0,0.00023388,2]
[387302795,1758684639912,-480.0,0.00023388,2]
[387302796,1758684639922,-178.89497154,0.00023388,2]
[387302797,1758684639931,-480.0,0.00023388,2]
[387302798,1758684639941,-480.0,0.00023388,2]
[387302799,1758684639951,-481.38585255,0.00023388,2]
[387302800,1758684639963,-480.0,0.00023388,2]
[387302801,1758684639972,-480.0,0.00023388,2]
[387302802,1758684639982,-482.68015481,0.00023388,2]
[387302803,1758684639992,-480.0,0.00023388,2]
[387302804,1758684640001,-571.92,0.00023388,2]
[387302805,1758684640011,-480.0,0.00023388,2]
[387302806,1758684640022,-170.27336706,0.00023388,2]
[387302807,1758684640032,-483.33338951,0.00023388,2]
[387302808,1758684640041,-480.0,0.00023388,2]
[387302809,1758684640051,-480.0,0.00023388,2]
[387302810,1758684640061,-480.0,0.00023388,2]
[387302811,1758684640070,-493.37270231,0.00023388,2]
[387302813,1758684640080,-480.0,0.00023388,2]
[387302814,1758684640089,-480.0,0.00023388,2]
[387302815,1758684640099,-480.0,0.00023388,2]
[387302817,1758684640108,-483.09178873,0.00023388,2]
[387302819,1758684640117,-485.82142508,0.00023388,2]
[387302820,1758684640127,-484.20275059,0.00023388,2]
[387302821,1758684640136,-480.0,0.00023388,2]
[387302822,1758684640145,-480.0,0.00023389,2]
[387302823,1758684640154,-437.5436454,0.00023389,2]
[387302824,1758684640164,-480.0,0.00023389,2]
[387302825,1758684640174,-483.53601391,0.00023389,2]
[387302826,1758684640184,-480.0,0.00023389,2]
[387302827,1758684640194,-480.0,0.00023389,2]
[387302828,1758684640204,-480.0,0.00023389,2]
[387302829,1758684640214,-480.0,0.00023389,2]
[387302830,1758684640225,-480.0,0.00023389,2]
[387302831,1758684640241,-483.4784309,0.00023389,2]
[387302833,1758684640250,-480.0,0.00023389,2]
[387302835,1758684640260,-480.0,0.00023389,2]
[387302836,1758684640270,-480.0,0.00023389,2]
[387302839,1758684640281,-563.59780604,0.00023389,2]
[387302841,1758684640291,-480.0,0.00023389,2]
[387302843,1758684640300,-480.0,0.00023389,2]
[387302845,1758684640310,-480.0,0.00023389,2]
[387302847,1758684640320,-480.6862917,0.00023389,2]
[387302849,1758684640330,-483.31572892,0.00023389,2]
[387302851,1758684640339,-555.14,0.00023389,2]
[387302853,1758684640349,-480.0,0.00023389,2]
[387302855,1758684640358,-480.0,0.00023389,2]
[387302856,1758684640368,-480.0,0.00023389,2]
[387302858,1758684640381,-480.0,0.00023389,2]
[387302860,1758684640391,-480.0,0.00023389,2]
[387302863,1758684640401,-480.0,0.00023389,2]
[387302865,1758684640411,-467.86253488,0.00023389,2]
[387302867,1758684640420,-480.0,0.00023389,2]
[387302869,1758684640430,-480.0,0.00023389,2]
[387302871,1758684640440,-480.0,0.00023389,2]
[387302873,1758684640449,-480.0,0.00023389,2]
[387302882,1758684640530,-480.0,0.00023389,2]
[387302884,1758684640540,-480.0,0.00023389,2]
[387302886,1758684640550,-480.0,0.00023389,2]
[387302888,1758684640559,-480.0,0.00023389,2]
[387302890,1758684640569,-460.36203989,0.00023389,2]
[387302892,1758684640579,-480.0,0.00023389,2]
[387302894,1758684640588,-480.0,0.00023389,2]
[387302896,1758684640597,-480.0,0.00023389,2]
[387302898,1758684640607,-480.0,0.00023389,2]
[387302900,1758684640617,-480.0,0.00023389,2]
[387302903,1758684640626,-152.193423,0.00023389,7]
[387302906,1758684640635,-167.68025,0.00023389,7]
[387302908,1758684640645,-151.0,0.00023389,7]
[387302910,1758684640655,-480.0,0.00023389,2]
[387302912,1758684640664,-151.83651,0.00023389,7]
[387302914,1758684640675,-151.0,0.00023389,7]
[387302916,1758684640685,-151.614912,0.00023389,7]
[387302919,1758684640695,-487.14455437,0.00023389,2]
[387302921,1758684640704,-2358.86,0.00023389,2]
[387302922,1758684640714,-151.0,0.00023389,7]
[387302925,1758684640723,-151.0,0.00023389,7]
[387302927,1758684640733,-151.0,0.00023389,7]
[387302929,1758684640742,-151.461823,0.00023389,7]
[387302931,1758684640752,-151.0,0.00023389,7]
[387302933,1758684640761,-480.0,0.00023389,2]
[387302935,1758684640773,-480.0,0.00023389,2]
[387302937,1758684640782,-151.0,0.00023389,7]
[387302939,1758684640791,-173.070984,0.00023389,7]
[387302941,1758684640801,-151.0,0.00023389,7]
[387302943,1758684640811,-173.070984,0.00023389,7]
[387302945,1758684640820,-173.070984,0.00023389,7]
[387302947,1758684640830,-173.070984,0.00023389,7]
[387302949,1758684640839,-151.0,0.00023389,7]
[387302951,1758684640849,-480.0,0.00023389,2]
[387302953,1758684640858,-791.03,0.00023389,2]
[387302955,1758684640868,-151.0,0.00023389,7]
[387302957,1758684640877,-151.0,0.00023389,7]
[387302959,1758684640886,-151.0,0.00023389,7]
[387302961,1758684640896,-151.0,0.00023389,7]
[387302962,1758684640905,-151.0,0.00023389,7]
[387302964,1758684640915,-480.0,0.0002339,2]
[387302967,1758684640924,-491.22142967,0.0002339,2]
[387302969,1758684640935,-480.0,0.0002339,2]
[387302971,1758684640944,-480.0,0.0002339,2]
[387302973,1758684640953,-480.0,0.0002339,2]
[387302975,1758684640962,-480.0,0.0002339,2]
[387302977,1758684640972,-484.51804193,0.0002339,2]
[387302979,1758684640981,-422.63190867,0.0002339,2]
[387302981,1758684640992,-482.65202307,0.0002339,2]
[387302983,1758684641002,-480.0,0.0002339,2]
[387302985,1758684641012,-480.0,0.0002339,2]
[387302987,1758684641022,-480.0,0.0002339,2]
[387302989,1758684641032,-244.70798791,0.0002339,2]
[387302991,1758684641042,-480.0,0.0002339,2]
[387302993,1758684641052,-480.0,0.0002339,2]
[387302995,1758684641062,-490.79503925,0.0002339,2]
[387302997,1758684641071,-496.58980733,0.0002339,2]
[387302999,1758684641081,-319.62268277,0.0002339,2]
[387303001,1758684641090,-480.0,0.0002339,2]
[387303003,1758684641100,-483.51540591,0.0002339,2]
[387303005,1758684641109,-480.0,0.0002339,2]
[387303007,1758684641118,-485.03246819,0.0002339,2]
[387303009,1758684641128,-487.98875917,0.0002339,2]
[387303011,1758684641137,-481.50810013,0.0002339,2]
[387303013,1758684641147,-480.0,0.0002339,2]
[387303015,1758684641156,-480.0,0.0002339,2]
[387303017,1758684641165,-480.0,0.0002339,2]
[387303019,1758684641174,-480.0,0.0002339,2]
[387303021,1758684641184,-480.0,0.0002339,2]
[387303023,1758684641193,-480.0,0.0002339,2]
[387303025,1758684641203,-480.0,0.0002339,2]
[387303027,1758684641212,-480.0,0.0002339,2]
[387303029,1758684641222,-480.0,0.0002339,2]
[387303031,1758684641233,-480.0,0.0002339,2]
[387303033,1758684641243,-480.0,0.0002339,2]
[387303035,1758684641253,-480.0,0.0002339,2]
[387303036,1758684641263,-480.0,0.0002339,2]
[387303039,1758684641276,-480.0,0.0002339,2]
[387303040,1758684641285,-482.51812744,0.0002339,2]
[387303043,1758684641296,-480.0,0.0002339,2]
[387303045,1758684641308,-481.89742107,0.0002339,2]
[387303047,1758684641317,-480.0,0.0002339,2]
[387303049,1758684641326,-480.0,0.0002339,2]
[387303051,1758684641336,-433.59106197,0.0002339,2]
[387303053,1758684641345,-480.0,0.0002339,2]
[387303055,1758684641354,-480.0,0.0002339,2]
[387303057,1758684641363,-480.0,0.0002339,2]
[387303059,1758684641373,-480.0,0.0002339,2]
[387303061,1758684641382,-480.0,0.0002339,2]
[387303063,1758684641391,-480.0,0.0002339,2]
[387303064,1758684641400,-483.54853414,0.0002339,2]
[387303066,1758684641410,-480.0,0.0002339,2]
[387303068,1758684641420,-480.0,0.0002339,2]
[387303070,1758684641429,-480.0,0.0002339,2]
[387303072,1758684641439,-480.0,0.0002339,2]
[387303074,1758684641448,-480.0,0.0002339,2]
[387303076,1758684641458,-480.0,0.0002339,2]
[387303078,1758684641468,-482.96370396,0.0002339,2]
[387303080,1758684641477,-267.34693362,0.0002339,2]
[387303082,1758684641487,-480.0,0.0002339,2]
[387303084,1758684641497,-480.0,0.0002339,2]
[387303086,1758684641506,-480.0,0.0002339,2]
[387303088,1758684641516,-480.0,0.0002339,2]
[387303090,1758684641527,-480.0,0.0002339,2]
[387303092,1758684641536,-480.0,0.0002339,2]
[387303094,1758684641546,-153.0,0.00023472,2]
[387303096,1758684641555,-153.0,0.00023472,2]
[387303098,1758684641565,-2159.0,0.00023506,2]
[387303100,1758684641574,-635.0,0.00023506,2]
[387303101,1758684641583,-410.0,0.00023506,2]
[387303102,1758684641592,-155.44257954,0.00023563,2]
[387303103,1758684641602,-500.0,0.00023622,2]
[387303104,1758684641611,-810.74,0.00023623,2]
[387303105,1758684641620,-480.0,0.00023623,2]
[387303106,1758684641629,-480.0,0.00023623,2]
[387303107,1758684641638,-151.0,0.00023623,7]
[387303108,1758684641647,-482.0550857,0.00023623,2]
[387303109,1758684641656,-152.472441,0.00023623,7]
[387303110,1758684641665,-151.0,0.00023623,7]
[387303111,1758684641675,-151.0,0.00023623,7]
[387303112,1758684641684,-151.0,0.00023623,7]
[387303113,1758684641693,-151.0,0.00023623,7]
[387303114,1758684641703,-480.0,0.00023623,2]
[387303115,1758684641713,-480.0,0.00023623,2]
[387303116,1758684641722,-480.0,0.00023623,2]
[387303117,1758684641731,-480.0,0.00023623,2]
[387303118,1758684641741,-480.0,0.00023623,2]
[387303119,1758684641750,-1079.19,0.00023623,2]
[387303120,1758684641759,-480.0,0.00023623,2]
[387303121,1758684641769,-480.0,0.00023624,2]
[387303122,1758684641779,-480.0,0.00023624,2]
[387303123,1758684641788,-483.22373079,0.00023624,2]
[387303124,1758684641797,-480.0,0.00023624,2]
[387303125,1758684641806,-480.0,0.00023624,2]
[387303126,1758684641815,-480.0,0.00023624,2]
[387303127,1758684641824,-480.0,0.00023624,2]
[387303128,1758684641834,-480.0,0.00023624,2]
[387303129,1758684641843,-553.3194877,0.00023624,2]
[387303130,1758684641852,-480.0,0.00023624,2]
[387303131,1758684641861,-480.0,0.00023624,2]
[387303132,1758684641870,-480.0,0.00023624,2]
[387303134,1758684641879,-480.0,0.00023624,2]
[387303136,1758684641890,-1686.9,0.00023624,2]
[387303138,1758684641899,-480.0,0.00023624,2]
[387303140,1758684641911,-480.0,0.00023624,2]
[387303142,1758684641921,-480.0,0.00023624,2]
[387303144,1758684641932,-480.0,0.00023624,2]
[387303146,1758684641944,-480.0,0.00023624,2]
[387303148,1758684641954,-480.0,0.00023624,2]
[387303150,1758684641964,-480.0,0.00023624,2]
[387303152,1758684641973,-601.28,0.00023624,2]
[387303154,1758684641982,-480.0,0.00023624,2]
[387303156,1758684641991,-480.0,0.00023624,2]
[387303158,1758684642001,-480.0,0.00023624,2]
[387303160,1758684642010,-480.0,0.00023624,2]
[387303162,1758684642019,-480.0,0.00023624,2]
[387303164,1758684642030,-480.0,0.00023624,2]
[387303173,1758684642099,-486.47951326,0.00023624,2]
[387303175,1758684642116,-480.0,0.00023624,2]
[387303177,1758684642126,-401.347651,0.00023624,2]
[387303179,1758684642136,-480.0,0.00023624,2]
[387303181,1758684642145,-480.0,0.00023624,2]
[387303183,1758684642155,-480.0,0.00023624,2]
[387303185,1758684642164,-445.03555212,0.00023624,2]
[387303187,1758684642174,-480.0,0.00023624,2]
[387303189,1758684642187,-480.0,0.00023624,2]
[387303192,1758684642196,-486.54383287,0.00023624,2]
[387303194,1758684642205,-480.0,0.00023624,2]
[387303196,1758684642214,-480.0,0.00023624,2]
[387303198,1758684642224,-480.0,0.00023624,2]
[387303200,1758684642238,-679.95,0.00023624,2]
[387303202,1758684642248,-480.0,0.00023624,2]
[387303204,1758684642257,-480.0,0.00023624,2]
[387303206,1758684642266,-480.0,0.00023624,2]
[387303208,1758684642279,-491.44316026,0.00023624,2]
[387303210,1758684642287,-480.0,0.00023624,2]
[387303212,1758684642297,-491.95964442,0.00023624,2]
[387303214,1758684642307,-480.0,0.00023624,2]
[387303216,1758684642316,-480.0,0.00023624,2]
[387303218,1758684642326,-480.0,0.00023624,2]
[387303220,1758684642335,-480.0,0.00023624,2]
[387303221,1758684642344,-480.0,0.00023624,2]
[387303224,1758684642354,-969.9,0.00023624,2]
[387303226,1758684642363,-480.0,0.00023624,2]
[387303228,1758684642373,-480.0,0.00023624,2]
[387303230,1758684642383,-522.8,0.00023624,2]
[387303231,1758684642392,-480.0,0.00023624,2]
[387303234,1758684642401,-487.48806555,0.00023624,2]
[387303236,1758684642410,-480.0,0.00023633,2]
[387303237,1758684642420,-480.0,0.00023653,2]
[387303239,1758684642429,-494.47600783,0.00023653,2]
[387303241,1758684642439,-480.0,0.00023653,2]
[387303243,1758684642448,-480.0,0.00023653,2]
[387303245,1758684642457,-480.0,0.00023653,2]
[387303247,1758684642466,-480.0,0.00023662,2]
[387303249,1758684642475,-480.0,0.00023662,2]
[387303251,1758684642485,-480.0,0.00023662,2]
[387303253,1758684642494,-157.33844956,0.00023662,2]
[387303255,1758684642503,-480.0,0.00023662,2]
[387303257,1758684642513,-480.0,0.00023662,2]
[387303259,1758684642523,-576.04229852,0.00023662,2]
[387303261,1758684642532,-480.0,0.00023662,2]
[387303263,1758684642541,-486.65341221,0.00023662,2]
[387303265,1758684642550,-480.0,0.00023662,2]
[387303267,1758684642560,-480.0,0.00023662,2]
[387303269,1758684642569,-482.23060942,0.00023662,2]
[387303271,1758684642579,-480.0,0.00023662,2]
[387303273,1758684642588,-480.0,0.00023662,2]
[387303275,1758684642597,-481.72870248,0.00023662,2]
[387303277,1758684642606,-480.0,0.00023662,2]
[387303279,1758684642617,-480.0,0.00023662,2]
[387303281,1758684642627,-480.0,0.00023662,2]
[387303283,1758684642636,-480.0,0.00023662,2]
[387303285,1758684642645,-480.0,0.00023662,2]
[387303287,1758684642655,-480.0,0.00023662,2]
[387303289,1758684642664,-480.0,0.00023662,2]
[387303291,1758684642673,-473.86212997,0.00023662,2]
[387303293,1758684642683,-483.36840215,0.00023662,2]
[387303295,1758684642692,-480.0,0.00023662,2]
[387303297,1758684642702,-481.91771429,0.00023662,2]
[387303299,1758684642711,-480.0,0.00023662,2]
[387303301,1758684642720,-480.0,0.00023662,2]
[387303303,1758684642730,-482.38581375,0.00023662,2]
[387303306,1758684642740,-480.0,0.00023662,2]
[387303308,1758684642749,-480.0,0.00023662,2]
[387303310,1758684642758,-151.0,0.00023662,7]
[387303311,1758684642768,-201.87549682,0.00023662,2]
[387303314,1758684642780,-480.0,0.00023662,2]
[387303315,1758684642789,-151.0,0.00023662,7]
[387303317,1758684642798,-480.0,0.00023662,2]
[387303319,1758684642807,-151.772652,0.00023662,7]
[387303321,1758684642816,-482.57262092,0.00023662,2]
[387303323,1758684642826,-480.0,0.00023662,2]
[387303325,1758684642835,-244.73895306,0.00023662,2]
[387303327,1758684642844,-480.0,0.00023662,2]
[387303329,1758684642854,-207.11798,0.00023662,7]
[387303331,1758684642864,-151.0,0.00023662,7]
[387303333,1758684642873,-151.0,0.00023662,7]
[387303336,1758684642883,-362.93446919,0.00023662,2]
[387303338,1758684642893,-571.92,0.00023662,2]
[387303340,1758684642902,-480.0,0.00023662,2]
[387303342,1758684642911,-199.12815661,0.00023662,2]
[387303344,1758684642921,-487.4459332,0.00023662,2]
[387303346,1758684642930,-480.0,0.00023662,2]
[387303348,1758684642939,-480.0,0.00023662,2]
[387303350,1758684642948,-480.0,0.00023662,2]
[387303351,1758684642957,-487.08769791,0.00023662,2]
[387303354,1758684642967,-480.0,0.00023662,2]
[387303356,1758684642976,-480.0,0.00023663,2]